[Event "44th Chess Olympiad Women 2022"]
[Site "Chennai"]
[Date "2022.08.03"]
[Round "6.40"]
[White "Monroy G., Nataly A."]
[Black "Mutisya, Jully"]
[Result "1-0"]
[WhiteElo "1907"]
[BlackElo "1428"]
[Annotator "NA RC"]
[PlyCount "57"]
[EventDate "2022.??.??"]
[TimeControl "60"]

1. d4 {[%emt 0:00:08]} Nf6 {[%emt 0:00:16]} 2. Nf3 {[%emt 0:00:37]} g6 {
[%emt 0:01:07]} 3. c4 {[%emt 0:00:48]} Bg7 {[%emt 0:00:34]} 4. Nc3 {[%emt 0:00:
00]} O-O {[%emt 0:00:35]} 5. e4 {[%emt 0:00:07]} d6 {[%emt 0:00:22]} 6. h3 {
[%emt 0:00:21]} e5 {[%emt 0:00:52]} 7. d5 {[%emt 0:08:03]} a5 {[%emt 0:07:29]}
8. Be3 {[%emt 0:03:14]} Nfd7 {[%emt 0:07:15]} 9. g4 {[%emt 0:04:16]} Na6 {
[%emt 0:01:21]} 10. Bd3 {[%emt 0:06:18]} Ndc5 {[%emt 0:01:11]} 11. Bc2 {
[%emt 0:01:00]} f5 {[%emt 0:05:41]} 12. gxf5 {[%emt 0:05:35]} gxf5 {[%emt 0:00:
00]} 13. exf5 {[%emt 0:01:00]} Bxf5 {[%emt 0:00:25]} 14. Bxf5 {[%emt 0:01:02]}
Rxf5 {[%emt 0:00:47]} 15. Rg1 {[%emt 0:00:03]} Kh8 {[%emt 0:02:54]} 16. Ng5 {
[%emt 0:01:07]} Nb4 {[%emt 0:24:58]} 17. Qh5 {[%emt 0:01:24]} Nbd3+ {[%emt 0:
00:00]} 18. Kd2 {[%emt 0:08:34]} Qg8 {[%emt 0:03:50]} 19. Rg4 {[%emt 0:10:16]}
Nf4 {[%emt 0:13:53]} 20. Bxf4 {[%emt 0:02:28]} exf4 {[%emt 0:00:19]} 21. Re1 {
[%emt 0:00:25]} h6 {[%emt 0:04:48]} 22. h4 {[%emt 0:04:49]} Nd7 {[%emt 0:06:19]
} 23. Re7 {[%emt 0:01:01]} Nf6 {[%emt 0:00:32]} 24. Nf7+ {[%emt 0:00:08]} Qxf7
{[%emt 0:04:03]} 25. Qxf7 {[%emt 0:00:06]} Ne4+ {[%emt 0:00:56]} 26. Nxe4 {
[%emt 0:00:05]} Rxf7 {[%emt 0:00:09]} 27. Rxf7 {[%emt 0:00:05]} Bxb2 {[%emt 0:
00:00]} 28. Nf6 {[%emt 0:01:06]} Bxf6 {[%emt 0:00:14]} 29. Rxf6 {[%emt 0:00:25]
} 1-0

[Event "44th Chess Olympiad Women 2022"]
[Site "Chennai"]
[Date "2022.08.03"]
[Round "6.40"]
[White "Ndirangu, Joyce Nyaruai"]
[Black "Coro, Soledad"]
[Result "1-0"]
[WhiteElo "1679"]
[BlackElo "1623"]
[Annotator "NA RC"]
[PlyCount "59"]
[EventDate "2022.??.??"]
[TimeControl "60"]

1. d4 {[%emt 0:00:12]} Nf6 {[%emt 0:00:23]} 2. Nf3 {[%emt 0:00:05]} e6 {
[%emt 0:02:42]} 3. Bf4 {[%emt 0:01:05]} c5 {[%emt 0:06:40]} 4. e3 {[%emt 0:00:
00]} b6 {[%emt 0:02:56]} 5. Nc3 {[%emt 0:05:59]} a6 {[%emt 0:01:50]} 6. h3 {
[%emt 0:04:48]} Bb7 {[%emt 0:00:31]} 7. Be2 {[%emt 0:02:37]} Be7 {[%emt 0:00:
00]} 8. O-O {[%emt 0:07:22]} O-O {[%emt 0:04:25]} 9. Na4 {[%emt 0:04:05]} d5 {
[%emt 0:10:32]} 10. c4 {[%emt 0:06:11]} Nbd7 {[%emt 0:11:06]} 11. dxc5 {
[%emt 0:14:51]} bxc5 {[%emt 0:06:08]} 12. Rc1 {[%emt 0:03:55]} h6 {[%emt 0:00:
00]} 13. b3 {[%emt 0:08:45]} Ne4 {[%emt 0:17:09]} 14. Ne5 {[%emt 0:04:03]} Nxe5
{[%emt 0:10:56]} 15. Bxe5 {[%emt 0:00:12]} f6 {[%emt 0:04:02]} 16. Bb2 {
[%emt 0:04:44]} Rc8 {[%emt 0:02:21]} 17. Nc3 {[%emt 0:13:58]} f5 {[%emt 0:00:
00]} 18. Bd3 {[%emt 0:06:15]} Qc7 {[%emt 0:00:33]} 19. cxd5 {[%emt 0:02:16]}
exd5 {[%emt 0:01:24]} 20. Ne2 {[%emt 0:00:36]} Bd6 {[%emt 0:00:48]} 21. Nd4 {
[%emt 0:03:22]} Qd7 {[%emt 0:01:07]} 22. Nf3 {[%emt 0:00:22]} Qe7 {[%emt 0:00:
00]} 23. Qe2 {[%emt 0:01:10]} a5 {[%emt 0:00:27]} 24. Nh2 {[%emt 0:01:36]} Qc7
{[%emt 0:02:23]} 25. Nf3 {[%emt 0:00:01]} Qe7 {[%emt 0:00:07]} 26. Rfd1 {
[%emt 0:00:29]} Bb8 {[%emt 0:01:09]} 27. Ba6 {[%emt 0:01:12]} Bxa6 {[%emt 0:00:
00]} 28. Qxa6 {[%emt 0:00:02]} Qd8 {[%emt 0:00:29]} 29. Qe6+ {[%emt 0:00:20]}
Kh8 {[%emt 0:00:41]} 30. Qxh6+ {[%emt 0:00:10]} 1-0

[Event "44th Chess Olympiad Women 2022"]
[Site "Chennai"]
[Date "2022.08.03"]
[Round "6.40"]
[White "Obondo, Cynthia Awino"]
[Black "Ramirez, Maria Eugenia"]
[Result "0-1"]
[WhiteElo "1439"]
[BlackElo "2005"]
[Annotator "NA RC"]
[PlyCount "108"]
[EventDate "2022.??.??"]
[TimeControl "60"]

1. d4 {[%emt 0:00:21]} c5 {[%emt 0:00:06]} 2. e3 {[%emt 0:00:41]} Nf6 {[%emt 0:
00:00]} 3. Bd3 {[%emt 0:02:21]} g6 {[%emt 0:01:57]} 4. Nf3 {[%emt 0:00:37]} Bg7
{[%emt 0:00:21]} 5. O-O {[%emt 0:00:58]} O-O {[%emt 0:01:22]} 6. b3 {[%emt 0:
00:00]} d6 {[%emt 0:02:25]} 7. Bb2 {[%emt 0:00:52]} Nc6 {[%emt 0:03:58]} 8. a3
{[%emt 0:04:18]} Qc7 {[%emt 0:01:04]} 9. Nbd2 {[%emt 0:01:24]} a6 {[%emt 0:00:
00]} 10. c4 {[%emt 0:00:38]} Rb8 {[%emt 0:02:02]} 11. Rc1 {[%emt 0:01:01]} b6 {
[%emt 0:00:44]} 12. Qe2 {[%emt 0:05:03]} Nh5 {[%emt 0:02:14]} 13. Bb1 {[%emt 0:
00:00]} f5 {[%emt 0:05:15]} 14. h3 {[%emt 0:11:53]} e5 {[%emt 0:05:07]} 15.
dxe5 {[%emt 0:00:47]} dxe5 {[%emt 0:00:41]} 16. Nh2 {[%emt 0:28:45]} f4 {
[%emt 0:11:48]} 17. exf4 {[%emt 0:04:00]} Nxf4 {[%emt 0:00:25]} 18. Qe3 {
[%emt 0:04:36]} Nd4 {[%emt 0:02:14]} 19. Rce1 {[%emt 0:05:08]} Bh6 {[%emt 0:00:
00]} 20. Kh1 {[%emt 0:08:48]} Bb7 {[%emt 0:05:26]} 21. f3 {[%emt 0:04:02]} Bg7
{[%emt 0:04:35]} 22. Ng4 {[%emt 0:00:24]} Nh5 {[%emt 0:02:04]} 23. Kg1 {
[%emt 0:01:28]} Rbe8 {[%emt 0:03:03]} 24. Ne4 {[%emt 0:00:52]} Nf4 {[%emt 0:00:
00]} 25. Rf2 {[%emt 0:02:19]} h5 {[%emt 0:02:23]} 26. Nh2 {[%emt 0:00:07]} Bh6
{[%emt 0:01:01]} 27. Qc3 {[%emt 0:03:04]} Bc8 {[%emt 0:00:08]} 28. Kh1 {
[%emt 0:01:15]} Qe7 {[%emt 0:03:39]} 29. Nf1 {[%emt 0:01:36]} Bxh3 {[%emt 0:00:
00]} 30. gxh3 {[%emt 0:00:46]} Nxh3 {[%emt 0:02:11]} 31. Nh2 {[%emt 0:02:09]}
Nxf2+ {[%emt 0:00:00]} 32. Nxf2 {[%emt 0:00:03]} Qh4 {[%emt 0:00:00]} 33. Kg2 {
[%emt 0:00:59]} Bf4 {[%emt 0:02:10]} 34. Rh1 {[%emt 0:00:34]} Ne2 {[%emt 0:00:
00]} 35. Qd3 {[%emt 0:00:37]} Qg5+ {[%emt 0:00:07]} 36. Kf1 {[%emt 0:00:45]}
Ng3+ {[%emt 0:00:07]} 37. Kg2 {[%emt 0:00:12]} Nxh1+ {[%emt 0:00:37]} 38. Kxh1
{[%emt 0:00:03]} Kg7 {[%emt 0:02:51]} 39. Nh3 {[%emt 0:00:24]} Qg3 {[%emt 0:00:
00]} 40. Nxf4 {[%emt 0:00:29]} Rxf4 {[%emt 0:00:09]} 41. Qd7+ {[%emt 0:31:31]}
Kf8 {[%emt 0:31:31]} 42. Qd6+ {[%emt 0:00:23]} Re7 {[%emt 0:03:20]} 43. Bxg6 {
[%emt 0:00:00]} Qh4 {[%emt 0:00:00]} 44. Bc3 {[%emt 0:00:00]} Rxf3 {[%emt 0:00:
00]} 45. Qd8+ {[%emt 0:00:00]} Kg7 {[%emt 0:00:00]} 46. Bd3 {[%emt 0:00:00]}
Re3 {[%emt 0:00:00]} 47. Bd2 {[%emt 0:00:00]} Rg3 {[%emt 0:03:07]} 48. Qxb6 {
[%emt 0:01:50]} Qf6 {[%emt 0:01:06]} 49. Bh6+ {[%emt 0:01:57]} Kf7 {[%emt 0:00:
00]} 50. Qxf6+ {[%emt 0:00:36]} Kxf6 {[%emt 0:00:04]} 51. Bc2 {[%emt 0:00:36]}
e4 {[%emt 0:00:06]} 52. Nf1 {[%emt 0:00:14]} Rc3 {[%emt 0:00:21]} 53. Ne3 {
[%emt 0:00:34]} Kg6 {[%emt 0:01:01]} 54. Bf4 {[%emt 0:01:21]} Kh7 {[%emt 0:00:
00]} 0-1

[Event "44th Chess Olympiad Women 2022"]
[Site "Chennai"]
[Date "2022.08.03"]
[Round "6.41"]
[White "Charinda, Kudzanayi"]
[Black "Enomah Emmanuella Trust"]
[Result "0-1"]
[WhiteElo "1719"]
[BlackElo "1901"]
[Annotator "NA RC"]
[PlyCount "88"]
[EventDate "2022.??.??"]
[TimeControl "60"]

1. e4 {[%emt 0:00:39]} c5 {[%emt 0:00:05]} 2. Nf3 {[%emt 0:00:11]} e6 {[%emt 0:
00:00]} 3. d4 {[%emt 0:00:15]} cxd4 {[%emt 0:00:04]} 4. Nxd4 {[%emt 0:00:08]}
a6 {[%emt 0:00:04]} 5. Nc3 {[%emt 0:00:41]} d6 {[%emt 0:00:20]} 6. Be3 {
[%emt 0:01:18]} Nd7 {[%emt 0:01:45]} 7. Be2 {[%emt 0:03:07]} b5 {[%emt 0:01:30]
} 8. O-O {[%emt 0:01:26]} Bb7 {[%emt 0:00:27]} 9. f4 {[%emt 0:02:12]} b4 {
[%emt 0:01:41]} 10. Nb1 {[%emt 0:04:28]} Bxe4 {[%emt 0:01:01]} 11. Bf3 {
[%emt 0:00:53]} Bxf3 {[%emt 0:01:42]} 12. Qxf3 {[%emt 0:00:09]} d5 {[%emt 0:00:
00]} 13. Nd2 {[%emt 0:01:22]} Ngf6 {[%emt 0:00:31]} 14. Rae1 {[%emt 0:00:32]}
Bc5 {[%emt 0:06:28]} 15. Nxe6 {[%emt 0:08:38]} fxe6 {[%emt 0:01:09]} 16. g4 {
[%emt 0:01:56]} O-O {[%emt 0:02:19]} 17. g5 {[%emt 0:00:47]} Ne8 {[%emt 0:00:
00]} 18. Nb3 {[%emt 0:01:15]} Bxe3+ {[%emt 0:00:46]} 19. Rxe3 {[%emt 0:01:33]}
Qb6 {[%emt 0:02:13]} 20. Kh1 {[%emt 0:00:28]} Nc7 {[%emt 0:01:21]} 21. Qh3 {
[%emt 0:00:43]} Rf7 {[%emt 0:03:27]} 22. Rg3 {[%emt 0:01:41]} g6 {[%emt 0:00:
00]} 23. Qg4 {[%emt 0:01:38]} Raf8 {[%emt 0:02:10]} 24. h4 {[%emt 0:01:19]} Qd6
{[%emt 0:05:02]} 25. Rgf3 {[%emt 0:02:03]} e5 {[%emt 0:02:03]} 26. f5 {[%emt 0:
00:00]} Rxf5 {[%emt 0:03:35]} 27. Rxf5 {[%emt 0:02:23]} Rxf5 {[%emt 0:00:06]}
28. Rxf5 {[%emt 0:01:00]} gxf5 {[%emt 0:00:06]} 29. Qxf5 {[%emt 0:00:11]} Qe6 {
[%emt 0:00:15]} 30. Qf3 {[%emt 0:01:20]} e4 {[%emt 0:01:54]} 31. Qf4 {[%emt 0:
00:00]} Qe5 {[%emt 0:03:56]} 32. Qg4 {[%emt 0:03:13]} Qe6 {[%emt 0:06:06]} 33.
Qf4 {[%emt 0:10:19]} Nb5 {[%emt 0:00:55]} 34. Nc1 {[%emt 0:04:55]} Nd4 {
[%emt 0:02:13]} 35. c3 {[%emt 0:10:06]} bxc3 {[%emt 0:01:40]} 36. bxc3 {
[%emt 0:00:23]} Qh3+ {[%emt 0:00:47]} 37. Kg1 {[%emt 0:00:30]} Qxc3 {[%emt 0:
00:00]} 38. Kh2 {[%emt 0:02:36]} Nf3+ {[%emt 0:03:35]} 39. Kh3 {[%emt 0:06:22]}
Nd2+ {[%emt 0:03:14]} 40. Kg4 {[%emt 0:01:13]} Qxc1 {[%emt 0:02:57]} 41. Qd6 {
[%emt 0:33:52]} Qd1+ {[%emt 0:36:52]} 42. Kh3 {[%emt 0:02:06]} Qf3+ {[%emt 0:
00:00]} 43. Kh2 {[%emt 0:00:18]} Nf1+ {[%emt 0:00:38]} 44. Kg1 {[%emt 0:00:11]}
Qg3+ {[%emt 0:00:15]} 0-1

[Event "44th Chess Olympiad Women 2022"]
[Site "Chennai"]
[Date "2022.08.03"]
[Round "6.41"]
[White "Makwena, Christine"]
[Black "Ogbiyoyo, Perpetual Eloho"]
[Result "0-1"]
[WhiteElo "1609"]
[BlackElo "1886"]
[Annotator "NA RC"]
[PlyCount "122"]
[EventDate "2022.??.??"]
[TimeControl "60"]

1. d4 {[%emt 0:00:02]} Nf6 {[%emt 0:00:19]} 2. c4 {[%emt 0:00:05]} b6 {[%emt 0:
00:00]} 3. Nc3 {[%emt 0:00:07]} Bb7 {[%emt 0:00:37]} 4. Qc2 {[%emt 0:00:10]} d5
{[%emt 0:00:45]} 5. cxd5 {[%emt 0:00:53]} Nxd5 {[%emt 0:00:13]} 6. e4 {[%emt 0:
00:00]} Nxc3 {[%emt 0:00:10]} 7. bxc3 {[%emt 0:00:18]} e5 {[%emt 0:00:59]} 8.
d5 {[%emt 0:03:04]} Nd7 {[%emt 0:00:51]} 9. Nf3 {[%emt 0:00:21]} h6 {[%emt 0:
00:00]} 10. Bb5 {[%emt 0:00:15]} Bd6 {[%emt 0:00:36]} 11. O-O {[%emt 0:02:57]}
a6 {[%emt 0:01:09]} 12. Be2 {[%emt 0:00:58]} g5 {[%emt 0:00:42]} 13. Nd2 {
[%emt 0:01:34]} Qe7 {[%emt 0:00:41]} 14. a4 {[%emt 0:00:31]} a5 {[%emt 0:02:31]
} 15. Nc4 {[%emt 0:01:18]} Bc5 {[%emt 0:00:58]} 16. Be3 {[%emt 0:01:08]} Ba6 {
[%emt 0:02:16]} 17. Bxc5 {[%emt 0:03:35]} Nxc5 {[%emt 0:04:03]} 18. Na3 {
[%emt 0:03:45]} Bxe2 {[%emt 0:03:15]} 19. Qxe2 {[%emt 0:00:03]} Nxa4 {[%emt 0:
00:00]} 20. Qc4 {[%emt 0:01:27]} Nc5 {[%emt 0:00:40]} 21. Nb5 {[%emt 0:00:31]}
O-O {[%emt 0:00:45]} 22. Rfd1 {[%emt 0:00:30]} Rad8 {[%emt 0:01:26]} 23. Na7 {
[%emt 0:00:36]} Rd6 {[%emt 0:01:11]} 24. Nc6 {[%emt 0:00:21]} Qf6 {[%emt 0:00:
00]} 25. Nxa5 {[%emt 0:10:47]} Qf4 {[%emt 0:00:35]} 26. Re1 {[%emt 0:02:55]}
Rf6 {[%emt 0:03:37]} 27. f3 {[%emt 0:29:32]} Ra8 {[%emt 0:05:23]} 28. Nc6 {
[%emt 0:09:02]} Rxa1 {[%emt 0:00:21]} 29. Rxa1 {[%emt 0:00:03]} Qe3+ {[%emt 0:
00:00]} 30. Kh1 {[%emt 0:02:08]} Nd3 {[%emt 0:00:36]} 31. h3 {[%emt 0:01:36]}
Nf2+ {[%emt 0:06:15]} 32. Kh2 {[%emt 0:01:20]} Qf4+ {[%emt 0:06:36]} 33. Kg1 {
[%emt 0:00:52]} Nxh3+ {[%emt 0:08:11]} 34. Kh1 {[%emt 0:05:21]} Nf2+ {[%emt 0:
00:00]} 35. Kg1 {[%emt 0:00:13]} Nh3+ {[%emt 0:01:45]} 36. Kh1 {[%emt 0:00:14]}
Qh4 {[%emt 0:00:27]} 37. Qa2 {[%emt 0:02:26]} Nf4+ {[%emt 0:02:25]} 38. Kg1 {
[%emt 0:00:12]} g4 {[%emt 0:10:57]} 39. Qa8+ {[%emt 0:12:52]} Kh7 {[%emt 0:00:
00]} 40. Ne7 {[%emt 0:00:27]} Qg5 {[%emt 0:00:34]} 41. fxg4 {[%emt 0:31:07]}
Qxg4 {[%emt 0:30:50]} 42. Ra2 {[%emt 0:01:33]} Qg3 {[%emt 0:04:33]} 43. Qc8 {
[%emt 0:01:25]} h5 {[%emt 0:05:09]} 44. Kh1 {[%emt 0:00:00]} Nd3 {[%emt 0:00:
00]} 45. Nf5 {[%emt 0:00:00]} Qe1+ {[%emt 0:00:00]} 46. Kh2 {[%emt 0:00:00]}
Nf2 {[%emt 0:00:00]} 47. Rxf2 {[%emt 0:00:00]} Qxf2 {[%emt 0:00:00]} 48. Qf8 {
[%emt 0:00:00]} Qf4+ {[%emt 0:00:00]} 49. Kg1 {[%emt 0:00:00]} Qg5 {[%emt 0:00:
00]} 50. Qe8 {[%emt 0:00:00]} Qc1+ {[%emt 0:00:00]} 51. Kh2 {[%emt 0:00:00]}
Qf4+ {[%emt 0:00:00]} 52. Kg1 {[%emt 0:00:00]} Qxe4 {[%emt 0:00:00]} 53. Ne7 {
[%emt 0:00:00]} Qe3+ {[%emt 0:00:00]} 54. Kh2 {[%emt 0:00:00]} Qg5 {[%emt 0:00:
00]} 55. Qb5 {[%emt 0:00:00]} Rf2 {[%emt 0:00:00]} 56. Qd3+ {[%emt 0:00:35]}
Kg7 {[%emt 0:00:00]} 57. Qh3 {[%emt 0:01:27]} Qf4+ {[%emt 0:00:00]} 58. Qg3+ {
[%emt 0:00:06]} Qxg3+ {[%emt 0:00:00]} 59. Kxg3 {[%emt 0:00:07]} Rc2 {[%emt 0:
00:00]} 60. Nc6 {[%emt 0:00:17]} Rxc3+ {[%emt 0:00:00]} 61. Kh4 {[%emt 0:00:09]
} Rxc6 {[%emt 0:00:00]} 0-1

[Event "44th Chess Olympiad Women 2022"]
[Site "Chennai"]
[Date "2022.08.03"]
[Round "6.41"]
[White "Ofowino, Toritsemuwa"]
[Black "Shaba, Linda Dalitso"]
[Result "1/2-1/2"]
[WhiteElo "1870"]
[BlackElo "1658"]
[Annotator "NA RC"]
[PlyCount "106"]
[EventDate "2022.??.??"]
[TimeControl "60"]

1. d4 {[%emt 0:00:19]} Nf6 {[%emt 0:00:09]} 2. Nf3 {[%emt 0:00:34]} e6 {
[%emt 0:00:18]} 3. Bf4 {[%emt 0:00:50]} d5 {[%emt 0:02:09]} 4. c3 {[%emt 0:00:
00]} Bd6 {[%emt 0:01:59]} 5. e3 {[%emt 0:00:26]} b6 {[%emt 0:03:00]} 6. Nbd2 {
[%emt 0:02:05]} a5 {[%emt 0:02:21]} 7. Bd3 {[%emt 0:01:15]} Ba6 {[%emt 0:03:57]
} 8. Qe2 {[%emt 0:00:25]} Bxf4 {[%emt 0:03:45]} 9. exf4 {[%emt 0:00:23]} Bxd3 {
[%emt 0:00:35]} 10. Qxd3 {[%emt 0:00:07]} O-O {[%emt 0:00:35]} 11. O-O {
[%emt 0:00:40]} c5 {[%emt 0:00:15]} 12. f5 {[%emt 0:08:54]} exf5 {[%emt 0:00:
00]} 13. Qxf5 {[%emt 0:00:10]} Qd7 {[%emt 0:00:28]} 14. Qxd7 {[%emt 0:06:06]}
Nbxd7 {[%emt 0:00:08]} 15. Rfe1 {[%emt 0:00:20]} Rfe8 {[%emt 0:00:31]} 16. a4 {
[%emt 0:13:57]} Rxe1+ {[%emt 0:05:23]} 17. Rxe1 {[%emt 0:00:29]} Re8 {[%emt 0:
00:00]} 18. Ra1 {[%emt 0:05:41]} Ne4 {[%emt 0:01:26]} 19. Nf1 {[%emt 0:00:54]}
Ndf6 {[%emt 0:14:40]} 20. Ne3 {[%emt 0:00:16]} Kf8 {[%emt 0:07:02]} 21. Kf1 {
[%emt 0:03:49]} g6 {[%emt 0:03:37]} 22. Rd1 {[%emt 0:02:54]} Rd8 {[%emt 0:00:
00]} 23. Ne5 {[%emt 0:01:33]} c4 {[%emt 0:02:57]} 24. Re1 {[%emt 0:03:31]} Rd6
{[%emt 0:03:28]} 25. h4 {[%emt 0:05:57]} h5 {[%emt 0:12:45]} 26. g3 {[%emt 0:
00:00]} Rd8 {[%emt 0:04:37]} 27. Kg2 {[%emt 0:02:26]} Nd6 {[%emt 0:05:54]} 28.
f3 {[%emt 0:01:05]} Nc8 {[%emt 0:00:53]} 29. g4 {[%emt 0:02:55]} Ne7 {[%emt 0:
00:00]} 30. Nc2 {[%emt 0:06:29]} Ne8 {[%emt 0:05:46]} 31. gxh5 {[%emt 0:02:22]}
gxh5 {[%emt 0:00:03]} 32. f4 {[%emt 0:00:36]} f6 {[%emt 0:01:06]} 33. Nf3 {
[%emt 0:00:40]} Kf7 {[%emt 0:00:03]} 34. Ne3 {[%emt 0:02:01]} Nd6 {[%emt 0:00:
00]} 35. Kf2 {[%emt 0:09:09]} Rg8 {[%emt 0:01:06]} 36. Rg1 {[%emt 0:00:42]}
Ne4+ {[%emt 0:01:17]} 37. Kf1 {[%emt 0:01:21]} Rxg1+ {[%emt 0:00:28]} 38. Kxg1
{[%emt 0:00:11]} Ke6 {[%emt 0:00:24]} 39. Kf1 {[%emt 0:02:36]} Nf5 {[%emt 0:00:
00]} 40. Nc2 {[%emt 0:01:23]} Nfg3+ {[%emt 0:01:41]} 41. Kg2 {[%emt 0:30:14]}
Ne2 {[%emt 0:31:15]} 42. f5+ {[%emt 0:02:03]} Kxf5 {[%emt 0:00:22]} 43. Ne3+ {
[%emt 0:00:12]} Ke6 {[%emt 0:00:11]} 44. Ne1 {[%emt 0:00:45]} Nf4+ {[%emt 0:00:
00]} 45. Kf3 {[%emt 0:00:14]} Ng6 {[%emt 0:00:17]} 46. N1g2 {[%emt 0:00:44]}
Nd6 {[%emt 0:02:36]} 47. Nf4+ {[%emt 0:00:40]} Nxf4 {[%emt 0:00:08]} 48. Kxf4 {
[%emt 0:00:05]} Ne8 {[%emt 0:00:00]} 49. Nf5 {[%emt 0:00:00]} Kf7 {[%emt 0:00:
00]} 50. Ne3 {[%emt 0:00:00]} Ke6 {[%emt 0:00:00]} 51. Nf5 {[%emt 0:00:00]} Kf7
{[%emt 0:00:00]} 52. Ne3 {[%emt 0:00:00]} Ke6 {[%emt 0:00:00]} 53. Nf5 {
[%emt 0:00:00]} Kf7 {[%emt 0:00:00]} 1/2-1/2

[Event "44th Chess Olympiad Women 2022"]
[Site "Chennai"]
[Date "2022.08.03"]
[Round "6.41"]
[White "Onoja, Iyefu Joy"]
[Black "Zengeni, Tatenda Melisa"]
[Result "0-1"]
[WhiteElo "1869"]
[BlackElo "1553"]
[Annotator "NA RC"]
[PlyCount "152"]
[EventDate "2022.??.??"]
[TimeControl "60"]

1. d4 {[%emt 0:00:09]} d5 {[%emt 0:00:18]} 2. Nf3 {[%emt 0:00:12]} e6 {[%emt 0:
00:00]} 3. Bf4 {[%emt 0:00:21]} f5 {[%emt 0:00:25]} 4. e3 {[%emt 0:00:54]} Nf6
{[%emt 0:00:14]} 5. Nbd2 {[%emt 0:00:45]} c6 {[%emt 0:00:37]} 6. c3 {[%emt 0:
00:00]} Be7 {[%emt 0:00:21]} 7. Be2 {[%emt 0:01:10]} O-O {[%emt 0:00:20]} 8.
Qb3 {[%emt 0:01:56]} Qb6 {[%emt 0:00:20]} 9. Qxb6 {[%emt 0:03:49]} axb6 {
[%emt 0:00:25]} 10. Ne5 {[%emt 0:01:04]} Nbd7 {[%emt 0:03:22]} 11. h3 {[%emt 0:
00:00]} Ne4 {[%emt 0:02:41]} 12. f3 {[%emt 0:09:11]} Bh4+ {[%emt 0:05:09]} 13.
g3 {[%emt 0:00:26]} Nxg3 {[%emt 0:01:38]} 14. Rg1 {[%emt 0:01:28]} Nh5+ {
[%emt 0:03:52]} 15. Kd1 {[%emt 0:00:12]} Nxf4 {[%emt 0:00:19]} 16. exf4 {
[%emt 0:00:07]} Nxe5 {[%emt 0:03:45]} 17. fxe5 {[%emt 0:00:08]} Bd7 {[%emt 0:
00:00]} 18. Rg2 {[%emt 0:01:41]} Kf7 {[%emt 0:11:26]} 19. Kc2 {[%emt 0:05:42]}
g6 {[%emt 0:02:45]} 20. f4 {[%emt 0:01:49]} Be7 {[%emt 0:06:30]} 21. Nf3 {
[%emt 0:00:36]} c5 {[%emt 0:01:21]} 22. a3 {[%emt 0:04:18]} cxd4 {[%emt 0:00:
00]} 23. Nxd4 {[%emt 0:01:05]} Bc5 {[%emt 0:00:17]} 24. Rd1 {[%emt 0:02:44]}
Rfc8 {[%emt 0:01:06]} 25. Bf1 {[%emt 0:09:29]} Ba4+ {[%emt 0:04:11]} 26. b3 {
[%emt 0:00:12]} Bc6 {[%emt 0:00:32]} 27. a4 {[%emt 0:00:42]} Rc7 {[%emt 0:00:
00]} 28. Rg3 {[%emt 0:04:21]} Rac8 {[%emt 0:04:42]} 29. Kb2 {[%emt 0:07:37]}
Be7 {[%emt 0:04:41]} 30. h4 {[%emt 0:05:09]} Rg8 {[%emt 0:07:36]} 31. Be2 {
[%emt 0:01:03]} Rg7 {[%emt 0:02:52]} 32. h5 {[%emt 0:02:58]} g5 {[%emt 0:01:16]
} 33. h6 {[%emt 0:00:13]} Rg6 {[%emt 0:06:26]} 34. Bh5 {[%emt 0:00:53]} g4 {
[%emt 0:02:33]} 35. Bxg6+ {[%emt 0:00:19]} hxg6 {[%emt 0:00:30]} 36. h7 {
[%emt 0:00:05]} Rc8 {[%emt 0:00:35]} 37. Rh1 {[%emt 0:01:41]} Rh8 {[%emt 0:00:
00]} 38. Kc2 {[%emt 0:02:27]} Bd7 {[%emt 0:00:27]} 39. Rg2 {[%emt 0:02:08]} g5
{[%emt 0:02:27]} 40. fxg5 {[%emt 0:03:24]} Bxg5 {[%emt 0:00:04]} 41. Ne2 {
[%emt 0:30:22]} Kg7 {[%emt 0:31:10]} 42. Kd3 {[%emt 0:01:40]} Rxh7 {[%emt 0:00:
00]} 43. Rxh7+ {[%emt 0:00:22]} Kxh7 {[%emt 0:00:01]} 44. Kd4 {[%emt 0:04:29]}
Bc6 {[%emt 0:02:30]} 45. Rh2+ {[%emt 0:03:19]} Kg6 {[%emt 0:00:00]} 46. Rh8 {
[%emt 0:00:00]} Bh6 {[%emt 0:00:00]} 47. Rg8+ {[%emt 0:00:00]} Kf7 {[%emt 0:00:
00]} 48. Rh8 {[%emt 0:00:00]} Kg7 {[%emt 0:00:00]} 49. Rc8 {[%emt 0:00:00]} f4
{[%emt 0:00:00]} 50. Rc7+ {[%emt 0:00:00]} Kg6 {[%emt 0:00:00]} 51. Re7 {
[%emt 0:00:00]} Bg5 {[%emt 0:00:00]} 52. Rxe6+ {[%emt 0:00:00]} Kf5 {[%emt 0:
00:00]} 53. Rd6 {[%emt 0:00:00]} g3 {[%emt 0:00:00]} 54. Rf6+ {[%emt 0:00:00]}
Bxf6 {[%emt 0:00:00]} 55. exf6 {[%emt 0:00:00]} Kxf6 {[%emt 0:00:00]} 56. Nxf4
{[%emt 0:00:00]} Kf5 {[%emt 0:00:00]} 57. Ne2 {[%emt 0:00:00]} Kg4 {[%emt 0:00:
00]} 58. Ke3 {[%emt 0:00:00]} Kh3 {[%emt 0:00:00]} 59. Kf4 {[%emt 0:00:00]} g2
{[%emt 0:00:00]} 60. Ke3 {[%emt 0:00:00]} Kh2 {[%emt 0:00:04]} 61. Kf2 {
[%emt 0:00:00]} Bd7 {[%emt 0:00:39]} 62. Kf3 {[%emt 0:00:00]} Be8 {[%emt 0:00:
00]} 63. Kg4 {[%emt 0:00:00]} Bg6 {[%emt 0:00:32]} 64. Kf4 {[%emt 0:01:28]} Bd3
{[%emt 0:00:39]} 65. Nd4 {[%emt 0:00:28]} Be4 {[%emt 0:00:32]} 66. Ne2 {
[%emt 0:00:09]} g1=Q {[%emt 0:01:19]} 67. Nxg1 {[%emt 0:00:13]} Kxg1 {[%emt 0:
00:00]} 68. b4 {[%emt 0:03:58]} Kf2 {[%emt 0:00:52]} 69. c4 {[%emt 0:00:51]}
Bg2 {[%emt 0:01:00]} 70. cxd5 {[%emt 0:00:44]} Bxd5 {[%emt 0:00:02]} 71. Ke5 {
[%emt 0:00:12]} Bb3 {[%emt 0:00:45]} 72. a5 {[%emt 0:00:57]} bxa5 {[%emt 0:00:
00]} 73. bxa5 {[%emt 0:00:04]} Bc4 {[%emt 0:00:11]} 74. Kd4 {[%emt 0:00:12]}
Ba6 {[%emt 0:00:04]} 75. Kc5 {[%emt 0:04:15]} Ke3 {[%emt 0:00:04]} 76. Kb4 {
[%emt 0:00:14]} Kd4 {[%emt 0:00:07]} 0-1